bitfinex/quotes_ETHUSD_20220213
["timestamp","ask_amount","ask_price","bid_price","bid_amount"]
[1644755975832,0.1701,2937.4,2937.3,0.85111]
[1644755976034,1.0,2937.9,2937.7,0.95837242]
[1644755976035,1.1701,2937.9,2937.7,0.95837242]
[1644755976233,0.1701,2937.9,2937.7,0.9574029]
[1644755976433,1.1701,2937.9,2937.0,1.7026]
[1644755976632,0.00397489,2937.8,2937.0,1.7026]
[1644755976832,0.00397489,2937.8,2937.4,0.85114]
[1644755977033,0.00397489,2937.8,2937.5,0.85114]
[1644755977234,0.00397489,2937.8,2937.6,3.13278863]
[1644755977433,5.95534671,2938.1,2937.5,0.85114]
[1644755977434,0.00397489,2938.0,2937.5,0.85114]
[1644755977835,0.00397489,2938.0,2937.6,3.04151487]
[1644755978232,0.00397489,2938.1,2937.5,0.85114]
[1644755978436,0.01108113,2937.9,2937.5,0.85114]
[1644755978936,0.01108113,2937.9,2937.7,0.85104]
[1644755979480,0.00397489,2938.1,2937.7,0.85104]
[1644755979884,0.01108113,2937.9,2937.7,0.85104]
[1644755981684,0.01505602,2937.9,2937.7,0.85104]
[1644755981983,0.86919116,2937.9,2937.7,0.85104]
[1644755982184,0.8762974,2937.9,2937.7,0.85104]
[1644755982788,0.01108113,2937.9,2937.6,0.85119]
[1644755983057,0.00397489,2937.9,2937.2,1.1842]
[1644755983248,0.00397489,2937.9,2937.1,3.0156]
[1644755983249,1.16521627,2937.8,2937.1,3.0156]
[1644755983445,0.86919116,2937.7,2937.1,3.0156]
[1644755983646,1.72054116,2937.7,2937.1,3.0156]
[1644755983846,2.02054116,2937.7,2937.1,3.0156]
[1644755984047,2.02054116,2937.7,2936.9,1.04621867]
[1644755984247,0.64886484,2937.4,2936.9,1.04621867]
[1644755984449,0.00397489,2937.3,2937.0,0.85137]
[1644755984849,1.44834739,2937.2,2937.0,0.85137]
[1644755985849,1.44834739,2937.2,2936.6,1.70281]
[1644755986052,1.44834739,2937.2,2936.3,0.89384328]
[1644755986053,1.45232228,2937.1,2936.4,1.2]
[1644755986250,0.65283973,2937.1,2936.4,1.2]
[1644755986649,1.45232228,2937.1,2936.4,1.2]
[1644755986875,1.45232228,2937.1,2936.4,2.97733148]
[1644755987075,1.45232228,2937.1,2936.6,0.85149]
[1644755989478,2.45232228,2937.1,2936.6,0.85149]
[1644755989680,1.44834739,2937.0,2936.6,0.85149]
[1644755990733,1.44834739,2937.0,2936.6,1.70286]
[1644755990929,1.44834739,2937.0,2936.7,0.85135]
[1644755991131,1.44834739,2937.0,2936.6,1.00918427]
[1644755991933,1.44834739,2936.9,2936.6,1.00918427]
[1644755992133,0.00397489,2937.2,2936.6,1.00918427]
[1644755992134,1.44834739,2936.8,2936.6,1.00918427]
[1644755992334,1.44834739,2936.7,2936.6,1.00918427]
[1644755992535,1.44834739,2937.1,2936.6,0.85149]
[1644755992734,0.00397489,2937.0,2936.6,0.85149]
[1644755993338,1.44834739,2936.9,2936.6,0.85149]
[1644755993735,0.00397489,2937.1,2936.6,0.85149]
[1644755993736,1.44834739,2936.8,2936.6,0.85149]
[1644755993937,1.44834739,2936.7,2936.6,0.85149]
[1644755994385,1.44834739,2937.0,2936.6,3.89551895]
[1644755994582,1.44834739,2936.9,2936.6,3.89551895]
[1644755994782,1.44834739,2937.0,2936.6,3.89551895]
[1644755994984,1.44834739,2936.9,2936.6,3.89551895]
[1644755995183,1.44834739,2936.8,2936.6,3.89551895]
[1644755995382,1.44834739,2936.7,2936.6,3.89551895]
[1644755995783,1.44834739,2937.1,2936.6,4.74681895]
[1644755995989,1.45232228,2937.0,2936.6,1.78124051]
[1644755996184,1.0,2937.2,2936.6,1.78124051]
[1644755996185,1.44834739,2936.9,2936.6,1.78124051]
[1644755996386,1.44834739,2936.8,2936.6,4.83753015]
[1644755996585,1.44834739,2936.7,2936.6,4.83753015]
[1644755996986,1.44834739,2937.0,2936.6,4.83753015]
[1644755997185,1.44834739,2936.9,2936.6,4.83753015]
[1644755997385,1.44834739,2936.8,2936.6,4.83753015]
[1644755997586,0.00397489,2937.4,2936.8,0.85112]
[1644755997885,0.01108121,2937.3,2936.9,3.4041762]
[1644755998132,0.01108121,2937.3,2937.1,1.14069396]
[1644755998535,1.44827426,2937.2,2937.1,1.14069396]
[1644755998733,1.44827426,2937.2,2937.1,2.84296396]
[1644755998932,1.44827426,2937.2,2937.1,1.70227]
[1644756003385,1.45224915,2937.2,2937.1,1.70227]
[1644756004385,1.44827426,2937.2,2937.1,1.70227]
[1644756005930,1.44827426,2937.2,2937.1,4.74701366]
[1644756008534,0.01108204,2937.3,2937.1,4.91711366]
[1644756008837,0.01505693,2937.3,2937.2,4.26624108]
[1644756009033,0.01108204,2937.3,2937.2,4.26624108]
[1644756009488,1.44814264,2937.3,2937.2,4.26624108]
[1644756009687,1.4592247,2937.4,2937.2,4.26624108]
[1644756009886,0.01108206,2937.4,2937.3,3.25983685]
[1644756010086,0.01108206,2937.4,2937.3,4.11087685]
[1644756010287,1.45922087,2937.4,2937.3,4.11087685]
[1644756010688,1.44813881,2937.4,2937.3,4.11087685]
[1644756011189,1.44813881,2937.4,2937.3,0.85104]
[1644756013444,0.66392162,2937.5,2937.3,0.85104]
[1644756013645,1.44813881,2937.4,2937.3,0.85104]
[1644756015450,0.01505678,2937.5,2937.3,0.85104]
[1644756015451,2.10097854,2937.5,2937.3,0.85104]
[1644756015651,1.44813881,2937.4,2937.3,0.85104]
[1644756015850,1.46319559,2937.5,2937.3,0.85104]
[1644756016051,1.44813881,2937.4,2937.3,0.85104]
[1644756018385,1.44813881,2937.4,2936.8,1.87256]
[1644756018585,0.00397489,2937.3,2937.2,0.85131]
[1644756018788,1.4521137,2937.3,2937.2,0.85131]
[1644756018987,0.00397489,2937.3,2937.2,0.85131]
[1644756019189,1.4521137,2937.3,2937.2,0.85131]
[1644756019387,0.00397489,2937.3,2937.2,0.85131]
[1644756019586,1.4521137,2937.3,2937.2,0.85131]
[1644756025890,1.44813881,2937.3,2937.2,0.85131]
[1644756026792,1.45922087,2937.4,2937.2,0.85131]
[1644756026990,1.44813881,2937.3,2937.2,0.85131]
[1644756027790,1.45922087,2937.4,2937.2,0.85131]
[1644756028031,1.44813881,2937.3,2937.2,0.85131]
[1644756028835,1.44813881,2937.3,2937.2,1.70248]
[1644756029034,0.00611224,2937.4,2937.3,0.85113]
[1644756029234,0.01008713,2937.4,2937.3,0.85113]
[1644756029440,1.45434055,2937.4,2937.3,0.85113]
[1644756029834,1.44822831,2937.4,2937.3,0.85113]
[1644756030035,0.64886484,2937.5,2937.3,0.85113]
[1644756030235,0.65456745,2937.5,2937.3,0.85113]
[1644756030634,1.44822831,2937.4,2937.3,0.85113]
[1644756031235,1.44822831,2937.4,2937.2,1.00889732]
[1644756031534,1.44822831,2937.3,2937.2,0.85131]
[1644756031781,1.44822831,2937.4,2937.2,0.85131]
[1644756031982,1.44822831,2937.3,2937.2,0.85131]
[1644756032180,1.44822831,2937.4,2937.2,0.85131]
[1644756032580,1.44822831,2937.3,2937.2,0.85131]
[1644756033783,0.01067326,2937.4,2937.3,0.8511]
[1644756034282,1.45882834,2937.4,2937.3,0.8511]
[1644756034684,1.44815508,2937.4,2937.3,0.8511]
[1644756034886,0.01045901,2937.5,2937.3,0.8511]
[1644756035085,1.44815508,2937.4,2937.3,0.8511]
[1644756037345,0.00548836,2937.5,2937.3,0.8511]
[1644756037544,1.44815508,2937.4,2937.3,0.8511]
[1644756039790,1.45365778,2937.5,2937.3,0.8511]
[1644756039988,1.44815508,2937.4,2937.3,0.8511]
[1644756040990,1.45862909,2937.5,2937.3,0.8511]
[1644756041190,1.44815508,2937.4,2937.3,0.8511]
[1644756042294,0.00397489,2937.6,2937.3,0.8511]
[1644756042295,1.45879472,2937.5,2937.3,0.8511]
[1644756042492,1.44815508,2937.4,2937.3,0.8511]
[1644756044734,0.01063964,2937.5,2937.3,0.8511]
[1644756045135,1.44815508,2937.4,2937.3,0.8511]
[1644756045736,0.01046194,2937.5,2937.3,0.8511]
[1644756045945,1.44815508,2937.4,2937.3,0.8511]
[1644756046143,0.65283973,2937.9,2937.4,4.17639994]
[1644756046144,0.00397489,2937.9,2937.4,4.17639994]
[1644756046339,7.6501,2938.3,2937.5,1.70152]
[1644756046340,0.65283973,2938.1,2937.5,1.70152]
[1644756046543,0.00397489,2937.9,2937.5,1.70152]
[1644756046992,0.00397489,2937.9,2937.6,0.86807492]
[1644756047197,0.65283973,2938.2,2937.6,0.86807492]
[1644756047596,0.65283973,2938.2,2937.7,0.85083]
[1644756047994,0.65283973,2938.2,2937.8,1.70162]
[1644756048196,7.48,2938.3,2937.8,2.00162]
[1644756048197,6.77407661,2938.3,2937.8,2.00162]
[1644756048395,0.8509,2938.8,2937.9,4.8]
[1644756048595,0.86521627,2938.9,2938.1,0.85063]
[1644756048794,3.5,2939.0,2938.1,0.85063]
[1644756048795,0.86521627,2939.0,2938.1,0.85063]
[1644756048994,0.86521627,2939.1,2938.2,0.6]
[1644756049194,0.86521627,2939.1,2938.3,1.70111]
[1644756049396,0.01108843,2938.7,2938.3,2.00111]
[1644756049594,0.01108843,2938.7,2938.6,1.06286245]
[1644756049796,0.01108843,2938.7,2938.6,1.91367245]
[1644756050295,0.90956332,2939.1,2938.6,1.91367245]
[1644756050296,0.86521627,2939.1,2938.6,1.91367245]
[1644756050527,0.0108837,2938.8,2938.6,1.91367245]
[1644756051134,0.0108837,2938.8,2938.6,0.36945922]
[1644756051332,0.0108837,2938.8,2938.7,0.85074]
[1644756051533,0.86521627,2939.0,2938.6,1.25040728]
[1644756051732,0.01088362,2938.8,2938.6,1.25040728]
[1644756052736,0.86521627,2939.1,2938.6,1.25040728]
[1644756052932,0.01088362,2938.8,2938.6,1.25040728]
[1644756053135,0.01088362,2938.8,2938.6,0.36945922]
[1644756053935,0.86521627,2939.0,2938.6,0.36945922]
[1644756054138,0.01108817,2938.8,2938.6,0.36945922]
[1644756055184,0.86521627,2939.1,2938.6,0.36945922]
[1644756055386,0.01108817,2938.8,2938.6,0.36945922]
[1644756055783,0.01108817,2938.8,2938.7,0.85076]
[1644756056384,0.86521627,2939.1,2938.7,0.85076]
[1644756056583,0.86521627,2939.1,2938.8,0.85071]
[1644756056584,0.01108809,2938.9,2938.8,0.85071]
[1644756057584,0.86521627,2939.1,2938.8,0.85071]
[1644756057786,0.01108792,2939.0,2938.8,0.85071]
[1644756058235,0.64755001,2938.9,2938.8,0.85071]
[1644756058436,0.01108792,2939.0,2938.8,0.85071]
[1644756058640,0.64754963,2938.9,2938.8,0.85071]
[1644756058840,0.86521627,2939.1,2938.8,0.85071]
[1644756059039,0.64755118,2938.9,2938.8,0.85071]
[1644756059239,0.64754978,2938.9,2938.8,0.85071]
[1644756059641,0.01108783,2939.0,2938.8,1.70136]
[1644756059842,0.01108783,2939.0,2938.8,0.85071]
[1644756059843,0.65854734,2939.0,2938.8,0.85071]
[1644756060048,1.03531627,2939.3,2938.8,3.96432809]
[1644756060049,0.64745951,2939.1,2938.8,3.96432809]
[1644756060248,0.01108783,2939.0,2938.9,0.1701]
[1644756060444,0.01108783,2939.0,2938.9,3.20319101]
[1644756060647,0.01108783,2939.0,2938.9,0.1701]
[1644756061244,0.1701,2939.3,2938.9,3.20773488]
[1644756061445,0.01108775,2939.1,2939.0,0.85046]
[1644756062285,0.1701,2939.3,2939.0,0.85046]
[1644756062684,0.01108758,2939.2,2939.0,0.85046]
[1644756063485,0.01108758,2939.2,2939.1,1.13797773]
[1644756063685,0.00398048,2939.4,2939.2,0.85064]
[1644756064986,0.01506763,2939.4,2939.2,0.85064]
[1644756066030,0.00398048,2939.4,2939.2,0.85064]
[1644756066230,1.44742213,2939.3,2939.2,0.85064]
[1644756071096,0.01108724,2939.4,2939.2,0.85064]
[1644756071293,1.44742213,2939.3,2939.1,2.82126192]
[1644756071792,1.44742213,2939.3,2939.2,0.85064]
[1644756072191,1.45850945,2939.3,2939.2,0.85064]
[1644756073245,1.44742213,2939.3,2939.2,0.85064]
[1644756077090,0.01108724,2939.4,2939.2,0.85064]
[1644756077290,1.44742213,2939.3,2939.2,0.85064]
[1644756078900,0.01108724,2939.4,2939.2,0.85064]
[1644756079099,1.44742213,2939.3,2939.2,0.85064]
[1644756081835,0.01108724,2939.4,2939.2,0.85064]
[1644756082034,1.44742213,2939.3,2939.2,0.85064]
[1644756083037,0.00398048,2939.6,2939.2,1.15064]
[1644756083038,0.01043617,2939.4,2939.2,1.15064]
[1644756083236,1.44742213,2939.3,2939.2,1.45064]
[1644756084283,0.01043617,2939.4,2939.3,0.85045]
[1644756084690,1.45769454,2939.4,2939.3,0.85045]
[1644756085089,1.44725837,2939.4,2939.3,0.85045]
[1644756086288,1.44725837,2939.4,2939.3,3.89271726]
[1644756086692,1.44725837,2939.4,2939.3,0.85045]
[1644756088435,0.01047965,2939.5,2939.3,0.85045]
[1644756088436,2.10917801,2939.5,2939.3,0.85045]
[1644756088636,1.44730773,2939.4,2939.3,0.85045]
[1644756089038,0.65793907,2939.5,2939.3,0.85045]
[1644756089239,1.44730773,2939.4,2939.3,0.85045]
[1644756089639,1.44730773,2939.4,2939.3,3.93950228]
[1644756091139,1.44730773,2939.4,2939.3,2.39573989]
[1644756092185,1.44730773,2939.4,2939.3,3.24618989]
[1644756092986,2.10922444,2939.5,2939.3,3.24618989]
[1644756093185,1.44730773,2939.4,2939.3,3.24618989]
[1644756093887,0.65793623,2939.5,2939.3,3.24618989]
[1644756094086,1.44730773,2939.4,2939.3,3.24618989]
[1644756094288,1.44730773,2939.4,2939.3,0.85045]
[1644756094691,1.28814671,2940.1,2939.5,3.2]
[1644756094890,1.28814671,2940.4,2939.6,29.27033]
[1644756095088,1.208,2940.8,2939.7,4.5]
[1644756095288,7.48,2940.8,2939.8,5.92719244]
[1644756095536,0.00399371,2940.7,2939.9,0.17]
[1644756095740,0.00399371,2940.7,2940.6,0.9921792]
[1644756095941,7.48,2940.8,2940.7,0.85017]
[1644756101087,0.01043398,2940.9,2940.7,0.85017]
[1644756101288,0.01043398,2940.9,2940.7,1.70026]
[1644756102086,0.00399371,2941.3,2940.9,0.85015]
[1644756102490,0.00399371,2941.3,2941.2,0.97141328]
[1644756102892,1.34341182,2941.1,2940.7,1.70019]
[1644756103134,0.00399371,2941.0,2940.7,1.70019]
[1644756103535,0.01442746,2941.0,2940.7,1.70019]
[1644756103935,0.01442746,2941.0,2940.8,1.70018]
[1644756104135,0.01442746,2941.0,2940.9,0.9887216]
[1644756104335,0.00399371,2941.0,2940.9,0.9887216]
[1644756104740,0.01444666,2941.0,2940.8,0.85009]
[1644756104943,0.6610778,2941.0,2940.8,0.85009]
[1644756105140,0.01444666,2941.0,2940.8,0.85009]
[1644756105340,0.01444666,2941.0,2940.9,1.70023]
[1644756105541,0.00399371,2941.0,2940.9,1.70023]
[1644756105740,1.99004296,2941.1,2940.9,1.70023]
[1644756105941,0.01444666,2941.0,2940.9,1.70023]
[1644756106141,0.01045295,2941.0,2940.9,1.70023]
[1644756106440,0.01444666,2941.0,2940.9,1.70023]
[1644756106881,0.00399371,2941.0,2940.9,2.71463102]
[1644756107081,1.35386469,2941.1,2940.9,2.71463102]
[1644756107283,0.00399371,2941.0,2940.9,2.71463102]
[1644756107484,1.3578584,2941.1,2940.9,2.71463102]
[1644756108082,1.34740553,2941.1,2940.9,2.71463102]
[1644756108282,1.35785702,2941.1,2940.9,2.71463102]
[1644756108683,1.35386331,2941.1,2940.9,2.71463102]
[1644756109282,1.34341182,2941.1,2940.9,2.71463102]
[1644756109482,1.35386331,2941.1,2940.9,2.71463102]
[1644756110535,1.34341182,2941.1,2940.9,2.71463102]
[1644756110740,1.35386331,2941.1,2940.9,2.71463102]
[1644756111344,1.35386331,2941.1,2940.9,1.17153788]
[1644756111642,1.34341182,2941.1,2940.9,1.17153788]
[1644756111841,1.35386339,2941.1,2940.9,1.17153788]
[1644756112843,1.34341182,2941.1,2940.9,1.17153788]
[1644756113042,1.35386339,2941.1,2940.9,1.17153788]
[1644756114045,1.34341182,2941.1,2940.9,1.17153788]
[1644756114303,1.35386339,2941.1,2940.9,1.17153788]
[1644756114689,1.44663644,2941.0,2940.9,1.17153788]
[1644756114888,1.45063015,2941.0,2940.9,1.17153788]
[1644756117493,1.6435148,2941.0,2940.9,1.17153788]
[1644756117898,1.6435148,2941.0,2940.9,4.28367365]
[1644756118435,1.6435148,2941.0,2940.9,4.2532938]
[1644756119840,1.6435148,2941.0,2940.9,1.17153788]
[1644756121886,1.6435148,2941.0,2940.9,4.23483769]
[1644756123591,1.64345923,2941.0,2940.9,4.23483769]
[1644756124690,1.64345923,2941.0,2940.9,1.17153788]
[1644756124891,1.64345923,2941.0,2940.9,4.24341479]
[1644756127038,1.64345923,2941.0,2940.9,1.17153788]
[1644756128639,1.64345923,2941.0,2940.9,4.23550644]
[1644756131002,1.64345923,2941.0,2940.9,1.17153788]
[1644756131501,1.64345923,2941.0,2940.8,4.41485868]
[1644756131700,1.63946552,2940.9,2940.8,4.71485868]
[1644756131901,1.63946552,2940.9,2940.8,6.63950151]
[1644756132102,0.19687836,2941.0,2940.8,6.63950151]
[1644756132302,0.20733016,2941.0,2940.9,4.35014934]
[1644756132502,1.65376278,2941.0,2940.9,4.35014934]
[1644756133239,1.64331098,2941.0,2940.9,4.35014934]
[1644756133443,1.64331098,2941.0,2940.9,3.90960664]
[1644756135843,1.64331098,2941.0,2940.9,0.84985]
[1644756136147,1.64331098,2941.0,2940.2,3.5]
[1644756136343,1.44643262,2940.9,2940.2,3.5]
[1644756136547,0.19687836,2940.8,2940.2,3.5]
[1644756136805,0.19288465,2940.6,2940.3,0.90404777]
[1644756136996,0.19288465,2940.4,2940.3,0.90404777]
[1644756137196,0.00399371,2940.6,2940.3,5.70404777]
[1644756137495,0.01062211,2940.7,2940.3,4.75430777]
[1644756137496,0.19288465,2940.4,2940.3,4.75430777]
[1644756138099,0.19288465,2940.4,2940.3,7.07797907]
[1644756138297,1.63946749,2940.4,2940.3,7.08550637]
[1644756146595,1.63946749,2940.4,2940.2,0.85021]
[1644756146795,1.63946749,2940.3,2940.2,0.85021]
[1644756147592,1.63946749,2940.3,2940.2,1.78808899]
[1644756149046,1.63946749,2940.3,2940.2,0.85021]
[1644756153503,1.63946749,2940.3,2940.2,4.0560336]
[1644756156747,1.63946749,2940.3,2940.1,1.00758908]
[1644756156748,4.4,2940.2,2940.1,1.00758908]
[1644756156946,4.4,2940.2,2939.9,4.0423117]
[1644756156947,1.63807488,2940.2,2939.9,0.9664117]
[1644756157147,0.19288465,2940.3,2939.8,0.86083629]
[1644756157352,0.19288465,2940.3,2939.8,0.85042]
[1644756157544,0.20329881,2940.3,2940.1,0.85045]
[1644756158345,0.19288465,2940.3,2940.1,2.02482104]
[1644756159798,0.20330701,2940.3,2940.1,2.02482104]
[1644756160796,0.19288465,2940.3,2940.1,2.02482104]
[1644756160996,0.20330701,2940.3,2940.1,2.02482104]
[1644756161996,0.19288465,2940.3,2940.1,2.02482104]
[1644756162199,0.0104214,2940.3,2940.1,0.85045]
[1644756163147,0.19288465,2940.4,2940.2,0.8503]
[1644756163343,0.19288465,2940.4,2940.3,0.8503]
[1644756163746,0.19288465,2940.4,2939.8,0.0104235]
[1644756163946,0.83951579,2940.4,2939.8,0.0104235]
[1644756164345,0.83951579,2940.4,2940.1,0.85045]
[1644756164747,0.01042155,2940.2,2940.1,1.92802015]
[1644756165547,0.83951579,2940.4,2940.1,1.92802015]
[1644756165747,0.19288465,2940.2,2940.1,1.92802015]
[1644756166793,0.19288465,2940.2,2940.1,0.85045]
[1644756167403,0.20330619,2940.3,2940.1,0.85045]
[1644756167804,0.84993733,2940.3,2940.1,0.85045]
[1644756168002,0.19288465,2940.3,2940.2,1.09199452]
[1644756168203,0.20330611,2940.3,2940.2,1.94231452]
[1644756169305,0.19288465,2940.3,2940.2,1.94231452]
[1644756170545,0.19288465,2940.3,2940.2,0.85032]
[1644756172345,0.20330603,2940.4,2940.2,0.85032]
[1644756172746,0.19288465,2940.4,2940.2,0.85032]
[1644756173150,0.20330595,2940.4,2940.2,0.85032]
[1644756173948,0.19288465,2940.4,2940.2,0.85032]
[1644756174388,0.20330595,2940.4,2940.2,0.85032]
[1644756175193,0.19288465,2940.4,2940.2,0.85032]
[1644756175396,0.20330595,2940.4,2940.2,0.85032]
[1644756176397,0.19288465,2940.4,2940.2,0.85032]
[1644756176600,0.20330595,2940.4,2940.2,0.85032]
[1644756176798,0.19288465,2940.2,2940.1,0.15748161]
[1644756176998,1.6397168,2940.2,2940.1,0.15748161]
[1644756178144,2.79949308,2940.2,2940.1,0.15748161]
[1644756178339,1.6397168,2940.2,2940.1,0.15748161]
[1644756179346,1.6397168,2940.2,2940.1,1.15796379]
[1644756181345,1.6397168,2940.2,2940.1,0.15748161]
[1644756182792,1.6397168,2940.2,2940.1,1.20053765]
[1644756189791,1.6397168,2940.2,2940.1,0.15748161]
[1644756191796,1.6397168,2940.2,2940.1,1.04193834]
[1644756195545,1.6397168,2940.2,2940.1,0.15748161]
[1644756196793,1.6397168,2940.2,2940.0,0.53534679]
[1644756196993,1.6397168,2940.1,2940.0,0.53534679]
[1644756200654,1.6397168,2940.1,2939.8,0.01042327]
[1644756200655,0.19288465,2939.9,2939.8,0.01042327]
[1644756200853,2.6397168,2939.9,2939.8,0.01042327]
[1644756201053,4.52228588,2939.9,2939.8,0.01042327]
[1644756201253,4.27161588,2939.9,2939.8,0.01042327]
[1644756201455,3.1097168,2939.9,2939.8,0.01042327]
[1644756201654,4.20321957,2939.9,2939.3,0.25]
[1644756201850,4.20321957,2939.9,2939.0,0.91742548]
[1644756201851,0.19288465,2939.6,2939.1,3.5]
[1644756202052,0.19288465,2939.3,2939.0,0.91742548]
[1644756202253,0.19288465,2939.3,2939.2,0.85064]
[1644756202453,1.64001252,2939.3,2939.2,0.85064]
[1644756203653,2.64001252,2939.3,2939.1,0.01042396]
[1644756203852,1.64001252,2939.2,2939.1,0.01042396]
[1644756204052,1.64001252,2939.2,2938.7,3.2718]
[1644756204294,0.19288465,2939.0,2938.7,3.2718]
[1644756204494,0.19288465,2938.8,2938.3,3.86888092]
[1644756204693,0.19288465,2938.8,2938.3,0.17358092]
[1644756204892,0.19288465,2938.8,2938.7,0.8508]
[1644756206199,1.6400866,2938.8,2938.7,0.8508]
[1644756206397,1.6400866,2938.8,2938.7,1.95919513]
[1644756206598,0.19288465,2938.8,2938.7,1.95919513]
[1644756206998,1.0,2939.3,2938.7,1.95919513]
[1644756207198,1.44724468,2939.2,2939.0,0.85062]
[1644756207398,1.44724468,2939.1,2939.0,0.85062]
[1644756207898,1.44724468,2939.2,2939.0,0.86104425]
[1644756208141,1.44724468,2939.1,2939.0,0.86104425]
[1644756208543,1.44724468,2939.4,2939.0,0.86104425]
[1644756208741,1.44724468,2939.3,2939.0,0.85062]
[1644756209140,1.44724468,2939.3,2939.1,0.01042414]
[1644756209343,1.44724468,2939.3,2939.2,0.85061]
[1644756211346,1.44724468,2939.5,2939.2,0.85061]
[1644756211545,1.44724468,2939.4,2939.1,0.01042406]
[1644756211792,1.44724468,2939.3,2939.1,0.01042406]
[1644756211996,1.44724468,2939.2,2939.1,0.01042406]
[1644756212393,1.44724468,2939.2,2938.7,2.80981513]
[1644756212594,1.43534363,2939.4,2938.7,1.10839513]
[1644756212595,1.44724468,2939.1,2938.7,1.10839513]
[1644756212793,2.44724468,2939.3,2939.0,0.01042417]
[1644756212993,1.44725562,2939.2,2939.0,0.01042417]
[1644756213193,1.44725562,2939.1,2939.0,0.86112417]
[1644756213693,1.44725562,2939.3,2939.0,0.8507]
[1644756215096,1.44725562,2939.3,2939.0,0.86112417]
[1644756216145,1.44725562,2939.3,2939.0,0.8507]
[1644756216346,1.44725562,2939.3,2939.0,0.86112419]
[1644756216549,1.44725562,2939.3,2939.0,0.01042419]
[1644756216946,0.19288465,2939.2,2939.0,0.01042419]
[1644756217149,1.64014027,2939.1,2938.9,0.85074]
[1644756217346,1.13534363,2939.4,2938.7,1.70499092]
[1644756217347,1.64016844,2939.0,2938.7,1.70499092]
[1644756217546,0.19288465,2938.8,2938.7,0.00358092]
[1644756217747,0.19288465,2938.8,2938.7,0.85078]
[1644756218350,0.19288465,2938.8,2938.5,0.00358092]
[1644756218351,1.23004768,2938.8,2938.5,0.00358092]
[1644756218549,1.23004768,2938.8,2938.3,0.00358092]
[1644756218850,1.64032683,2938.7,2938.6,0.0104248]
[1644756219710,1.64032683,2938.7,2938.4,0.00358092]
[1644756219913,0.19288465,2938.7,2938.5,0.01043277]
[1644756220912,0.19288465,2938.7,2938.3,0.00358092]
[1644756221210,0.19288465,2938.7,2938.5,0.01043285]
[1644756221211,0.19144002,2938.7,2938.5,0.01043285]
[1644756222008,0.19144002,2938.7,2938.3,0.85091]
[1644756222213,0.19144002,2938.7,2938.5,0.01043285]
[1644756223146,0.19144002,2938.7,2938.1,0.00360023]
[1644756223346,0.19144002,2938.7,2938.2,0.8509]
[1644756223548,0.19144002,2938.7,2938.5,0.01042453]
[1644756224349,0.19144002,2938.7,2938.3,0.85092]
[1644756224549,0.19144002,2938.7,2938.4,0.00360023]
[1644756224753,0.19144002,2938.7,2938.5,0.01042453]
[1644756225549,0.19144002,2938.7,2938.3,0.00360023]
[1644756225750,0.19144002,2938.7,2938.4,0.85088]
[1644756225952,0.19144002,2938.7,2938.5,0.01402476]
[1644756226151,0.19144002,2938.7,2938.5,0.01042453]
[1644756226353,1.19144002,2938.7,2938.5,0.01042453]
[1644756226553,0.19144002,2938.7,2938.5,0.01042453]
[1644756226791,1.19144002,2938.7,2938.5,0.85087]
[1644756226991,0.19144002,2938.7,2938.5,0.85087]
[1644756227192,1.19144002,2938.7,2938.5,0.0104251]
[1644756227396,0.19144002,2938.7,2938.5,0.0104251]
[1644756227593,1.19144002,2938.7,2938.5,0.0104251]
[1644756227794,0.19144002,2938.7,2938.5,0.0104251]
[1644756227995,0.19144002,2938.7,2938.3,0.00360023]
[1644756227996,1.19144002,2938.7,2938.3,0.00360023]
[1644756228195,1.19144002,2938.7,2938.5,0.0104251]
[1644756228393,0.3,2938.8,2938.5,0.01402533]
[1644756228394,0.19144002,2938.8,2938.5,0.01402533]
[1644756228595,0.19144002,2938.6,2938.5,0.01402533]
[1644756229294,0.19144002,2938.6,2938.5,0.00360023]
[1644756229494,0.19144002,2938.6,2938.4,1.71200517]
[1644756229694,0.19144002,2938.6,2938.5,0.00360023]
[1644756229898,0.19144002,2938.6,2938.4,1.71200517]
[1644756230095,0.19144002,2938.6,2938.5,0.85088]
[1644756230295,0.19144002,2938.6,2938.5,0.85448023]
[1644756232648,0.19144002,2938.6,2938.5,0.85088]
[1644756233549,0.19144002,2938.9,2938.5,0.85088]
[1644756233750,0.19144002,2938.7,2938.6,0.00360023]
[1644756233950,0.19144002,2938.7,2938.6,0.84363955]
[1644756233951,1.63894284,2938.7,2938.6,0.84363955]
[1644756239157,0.1701,2939.1,2938.7,0.8507]
[1644756239158,0.19144002,2939.1,2938.7,0.8507]
[1644756239357,0.19144002,2938.9,2938.8,3.94993355]
[1644756239557,1.63873123,2938.9,2938.8,3.9272329]
[1644756239759,0.19144002,2938.9,2938.8,3.9272329]
[1644756239960,0.19144002,2938.9,2938.8,1.74347899]
[1644756240360,0.19144002,2938.9,2938.8,4.80770718]
[1644756240560,1.6387339,2938.9,2938.8,4.80770718]
[1644756240761,0.19144002,2938.9,2938.8,4.80770718]
[1644756242396,0.19144002,2938.9,2938.8,4.81649581]
[1644756242597,0.19144002,2938.9,2938.8,1.74347899]
[1644756242800,0.19144002,2938.9,2938.8,1.91357899]
[1644756242996,1.63871943,2938.9,2938.8,1.91357899]
[1644756244800,1.63871943,2938.9,2938.8,5.01695818]
[1644756245200,1.63871943,2938.9,2938.8,1.91357899]
[1644756245854,1.63871943,2938.9,2938.8,0.85062]
[1644756246252,1.63871943,2938.9,2938.7,0.86070141]
[1644756246455,1.63871943,2938.8,2938.7,0.00986141]
[1644756247254,1.63871943,2938.8,2938.5,1.7016]
[1644756247452,0.19144002,2938.8,2938.7,0.85082]
[1644756247853,1.63880232,2938.8,2938.7,0.85082]
[1644756249697,1.63880232,2938.8,2938.7,0.85441228]
[1644756251603,1.63880232,2938.8,2938.2,0.1701]
[1644756251604,4.69144002,2938.7,2938.2,0.1701]
[1644756251805,2.63880232,2938.6,2938.5,0.00359228]
[1644756252107,2.63880232,2938.6,2937.7,7.7538]
[1644756252108,2.80890232,2938.6,2938.1,0.00359228]
[1644756252305,0.19144002,2938.4,2938.0,0.85102]
[1644756252605,1.08806657,2938.2,2937.7,7.5837]
[1644756252805,0.19144002,2938.0,2937.7,3.5]
[1644756253064,0.19144002,2938.1,2937.5,6.36149997]
[1644756253248,0.19144002,2937.9,2937.5,6.36149997]
[1644756253445,0.19144002,2937.9,2937.8,0.85107]
[1644756256252,0.19144002,2937.9,2937.8,3.97457388]
[1644756256454,0.19144002,2937.9,2937.8,0.85107]
[1644756256652,0.19144002,2937.9,2937.8,3.98659631]
[1644756258104,0.19144002,2938.5,2938.2,1.07985044]
[1644756258303,0.19144002,2938.3,2938.2,1.07985044]
[1644756258606,1.63899297,2938.3,2938.2,1.93078044]